bitfinex/quotes_SOLUSD_20250622
["timestamp","ask_amount","ask_price","bid_price","bid_amount"]
[1750629222673,0.74,129.42,129.39,7.76001561]
[1750629224476,0.74,129.42,129.39,12.10820716]
[1750629225535,0.444569,129.42,129.39,12.10820716]
[1750629225736,18.64964886,129.42,129.39,12.10820716]
[1750629227355,18.64964886,129.42,129.39,12.78820716]
[1750629227835,18.64964886,129.42,129.39,12.10820716]
[1750629228535,7.9376,129.43,129.4,12.78820716]
[1750629228750,26.58724886,129.43,129.4,12.10820716]
[1750629230246,26.58724886,129.43,129.4,12.78820716]
[1750629230439,20.28334886,129.43,129.4,12.78820716]
[1750629230848,21.00334886,129.43,129.4,12.78820716]
[1750629232277,21.00334886,129.43,129.39,12.10820716]
[1750629232972,0.72,129.41,129.39,12.10820716]
[1750629233143,0.72,129.41,129.38,15.90458256]
[1750629233346,0.72,129.41,129.38,12.10820716]
[1750629233993,0.72,129.41,129.38,15.95302859]
[1750629236177,12.82820716,129.44,129.39,12.10820716]
[1750629236562,0.72,129.42,129.38,12.10820716]
[1750629237683,12.10820716,129.43,129.38,12.10820716]
[1750629237884,12.82820716,129.43,129.38,16.0368161]
[1750629238378,12.10820716,129.43,129.38,16.0368161]
[1750629238686,0.72,129.42,129.38,16.0368161]
[1750629239057,19.36964886,129.42,129.39,12.10820716]
[1750629239388,19.36964886,129.42,129.37,7.18]
[1750629239389,18.64964886,129.42,129.4,12.10820716]
[1750629240175,18.64964886,129.42,129.39,12.10820716]
[1750629241269,18.64964886,129.42,129.39,12.78820716]
[1750629241472,18.64964886,129.42,129.4,12.10820716]
[1750629242777,18.64964886,129.42,129.38,4.50916518]
[1750629242977,18.64964886,129.4,129.37,12.10820716]
[1750629243357,19.36964886,129.4,129.37,12.10820716]
[1750629246363,19.36964886,129.4,129.37,7.75168189]
[1750629246973,19.36964886,129.4,129.36,11.64555168]
[1750629249679,19.36964886,129.4,129.37,7.75168189]
[1750629250400,7.75168189,129.4,129.34,26.0]
[1750629250596,20.29234886,129.38,129.34,7.75168189]
[1750629250891,28.04403075,129.38,129.33,14.89168189]
[1750629251057,18.64964886,129.36,129.31,7.14]
[1750629251255,18.64964886,129.34,129.31,14.89168189]
[1750629251676,19.36964886,129.34,129.31,14.89168189]
[1750629252257,19.36964886,129.34,129.31,19.26288246]
[1750629254879,18.64964886,129.34,129.31,19.26288246]
[1750629255273,19.36964886,129.34,129.31,19.26288246]
[1750629260288,44.64964886,129.36,129.32,12.12288246]
[1750629260782,56.77253132,129.36,129.32,12.12288246]
[1750629261195,57.49253132,129.36,129.32,12.12288246]
[1750629261876,18.64964886,129.34,129.31,19.26288246]
[1750629262472,12.12288246,129.36,129.31,7.14]
[1750629262675,0.72,129.33,129.31,7.14]
[1750629264496,18.64964886,129.37,129.31,7.14]
[1750629264678,18.64964886,129.34,129.31,19.26288246]
[1750629264885,19.36964886,129.34,129.31,7.14]
[1750629272392,18.64964886,129.34,129.31,7.14]
[1750629272599,0.72,129.33,129.31,7.14]
[1750629272902,19.36964886,129.34,129.31,7.14]
[1750629274488,27.12960792,129.34,129.31,7.14]
[1750629275911,18.64964886,129.35,129.31,14.89995906]
[1750629282703,19.36964886,129.35,129.31,14.89995906]
[1750629284113,19.36964886,129.35,129.31,7.14]
[1750629284713,19.36964886,129.35,129.29,8.50995906]
[1750629284714,8.49995906,129.34,129.29,8.50995906]
[1750629284897,7.75995906,129.34,129.29,8.50995906]
[1750629285091,8.49995906,129.34,129.29,8.50995906]
[1750629286109,8.49995906,129.34,129.29,7.75995906]
[1750629286308,18.64964886,129.32,129.29,7.75995906]
[1750629286510,18.64964886,129.32,129.29,8.49995906]
[1750629288107,18.64964886,129.32,129.29,7.75995906]
[1750629289804,19.38964886,129.32,129.29,7.75995906]
[1750629290813,0.74,129.32,129.28,15.60995906]
[1750629291312,0.74,129.32,129.28,8.48995906]
[1750629291520,26.40960792,129.33,129.28,7.75995906]
[1750629291702,0.74,129.32,129.28,7.75995906]
[1750629292218,0.74,129.32,129.28,8.49995906]
[1750629292398,0.74,129.32,129.28,7.75995906]
[1750629292598,0.74,129.32,129.29,0.74]
[1750629293121,0.74,129.32,129.26,12.48029304]
[1750629293327,0.74,129.32,129.28,7.75995906]
[1750629295221,18.64964886,129.3,129.27,7.75995906]
[1750629295423,18.64964886,129.3,129.27,8.49995906]
[1750629295617,19.38964886,129.3,129.28,7.75995906]
[1750629296021,19.38964886,129.3,129.27,8.49995906]
[1750629297531,19.38964886,129.3,129.27,0.74]
[1750629297830,19.38964886,129.3,129.27,8.49995906]
[1750629299012,18.64964886,129.3,129.27,7.75995906]
[1750629300535,19.38964886,129.3,129.27,7.75995906]
[1750629303239,18.64964886,129.3,129.27,7.75995906]
[1750629303445,18.64964886,129.3,129.28,7.75995906]
[1750629303740,18.64964886,129.3,129.27,7.75995906]
[1750629304240,18.64964886,129.3,129.26,9.366]
[1750629304538,18.64964886,129.3,129.27,7.75995906]
[1750629309125,19.38964886,129.3,129.27,7.75995906]
[1750629312445,19.38964886,129.3,129.26,7.86]
[1750629312623,19.38964886,129.3,129.28,7.75995906]
[1750629318342,19.33964886,129.3,129.26,7.12]
[1750629318551,0.69,129.29,129.27,7.75995906]
[1750629325060,18.64964886,129.28,129.26,33.12]
[1750629325741,26.40960792,129.29,129.26,33.12]
[1750629326147,0.69,129.28,129.26,33.12]
[1750629326965,18.64964886,129.27,129.26,33.12]
[1750629328152,18.64964886,129.27,129.26,7.12]
[1750629330243,19.33964886,129.27,129.26,7.12]
[1750629332236,19.33964886,129.27,129.24,7.75995906]
[1750629334459,0.69,129.26,129.22,3.91414267]
[1750629334665,18.64964886,129.27,129.24,7.75995906]
[1750629335046,19.33964886,129.27,129.24,7.75995906]
[1750629336065,19.33964886,129.27,129.22,4.57128099]
[1750629336258,18.64964886,129.27,129.24,7.75995906]
[1750629336562,19.33964886,129.27,129.23,7.75995906]
[1750629337138,18.64964886,129.29,129.24,7.75995906]
[1750629337350,0.69,129.28,129.24,7.75995906]
[1750629337665,19.33964886,129.26,129.24,7.75995906]
[1750629338361,19.33964886,129.26,129.23,7.75995906]
[1750629338541,0.69,129.25,129.23,7.75995906]
[1750629339445,18.64964886,129.26,129.23,7.75995906]
[1750629341068,19.33964886,129.26,129.23,7.75995906]
[1750629343369,18.64964886,129.26,129.23,7.75995906]
[1750629343548,0.69,129.25,129.23,7.75995906]
[1750629343750,18.64964886,129.26,129.23,7.75995906]
[1750629343950,19.38964886,129.26,129.23,7.75995906]
[1750629346055,18.64964886,129.26,129.23,7.75995906]
[1750629346259,18.64964886,129.26,129.21,7.77]
[1750629346260,0.74,129.25,129.21,7.77]
[1750629346458,19.38964886,129.24,129.22,7.75995906]
[1750629348969,26.40960792,129.26,129.22,7.75995906]
[1750629349358,18.64964886,129.24,129.22,7.75995906]
[1750629349562,19.38964886,129.24,129.22,7.75995906]
[1750629351453,18.64964886,129.26,129.22,7.75995906]
[1750629352874,19.38964886,129.26,129.22,7.75995906]
[1750629353372,18.64964886,129.26,129.22,7.75995906]
[1750629353592,18.64964886,129.24,129.22,7.75995906]
[1750629354076,19.38964886,129.26,129.22,7.75995906]
[1750629354659,27.14960792,129.26,129.22,7.75995906]
[1750629356179,27.14960792,129.26,129.19,20.1212626]
[1750629356180,27.14960792,129.26,129.21,0.69]
[1750629356471,27.14960792,129.26,129.19,20.1212626]
[1750629356472,18.64964886,129.26,129.23,7.75995906]
[1750629356770,18.64964886,129.26,129.24,7.75995906]
[1750629357559,18.64964886,129.26,129.23,7.75995906]
[1750629358576,18.64964886,129.26,129.24,7.75995906]
[1750629359179,18.64964886,129.26,129.23,7.75995906]
[1750629360172,18.64964886,129.27,129.25,7.75995906]
[1750629360567,18.64964886,129.27,129.23,7.73790375]
[1750629360769,18.64964886,129.27,129.25,7.75995906]
[1750629361674,18.64964886,129.29,129.25,7.75995906]
[1750629361882,18.64964886,129.29,129.28,8.44995906]
[1750629362066,18.64964886,129.31,129.28,8.44995906]
[1750629362662,18.64964886,129.31,129.28,7.75995906]
[1750629363787,18.64964886,129.31,129.27,0.69]
[1750629363964,18.64964886,129.31,129.28,7.75995906]
[1750629364457,18.64964886,129.31,129.27,0.69]
[1750629364659,18.64964886,129.31,129.27,8.44995906]
[1750629364860,18.64964886,129.31,129.27,0.69]
[1750629365058,18.64964886,129.31,129.27,8.44995906]
[1750629365388,18.64964886,129.31,129.28,7.75995906]
[1750629366161,19.38964886,129.31,129.28,7.75995906]
[1750629371396,19.38964886,129.29,129.26,7.75995906]
[1750629371568,0.74,129.28,129.26,7.75995906]
[1750629371961,18.64964886,129.29,129.26,7.75995906]
[1750629372162,19.38964886,129.29,129.26,7.75995906]
[1750629373187,19.38964886,129.29,129.25,15.50995906]
[1750629379489,0.75,129.28,129.25,7.06]
[1750629379673,26.40960792,129.29,129.25,7.06]
[1750629379999,0.75,129.28,129.25,7.06]
[1750629386803,7.41000062,129.31,129.25,14.81995906]
[1750629387007,0.75,129.3,129.26,8.49995906]
[1750629387414,18.64964886,129.3,129.26,8.49995906]
[1750629387596,0.75,129.29,129.26,8.49995906]
[1750629388118,0.75,129.29,129.26,7.75995906]
[1750629389101,0.75,129.29,129.25,7.06]
[1750629389301,0.75,129.29,129.26,7.75995906]
[1750629391626,0.75,129.29,129.25,14.81995906]
[1750629391919,0.75,129.29,129.25,15.55995906]
[1750629397299,19.39964886,129.3,129.25,15.55995906]
[1750629397495,19.39964886,129.3,129.26,7.75995906]
[1750629397702,19.39964886,129.3,129.26,8.49995906]
[1750629397915,19.39964886,129.3,129.26,0.74]
[1750629398096,0.75,129.29,129.26,8.49995906]
[1750629399124,5.75203891,129.31,129.26,7.75995906]
[1750629399418,18.64964886,129.31,129.29,0.74]
[1750629401416,0.75,129.32,129.29,0.74]
[1750629401611,0.75,129.32,129.29,8.49995906]
[1750629401612,18.64964886,129.32,129.29,8.49995906]
[1750629403319,19.39964886,129.32,129.29,8.49995906]
[1750629406706,19.39964886,129.32,129.25,7.8]
[1750629406707,27.11960792,129.32,129.25,7.8]
[1750629406906,0.71,129.31,129.28,7.75995906]
[1750629407106,26.3412376,129.34,129.3,7.75995906]
[1750629407315,26.3412376,129.34,129.31,7.75995906]
[1750629407505,26.3412376,129.34,129.32,7.75995906]
[1750629408014,26.3412376,129.34,129.31,8.49995906]
[1750629411226,26.3412376,129.34,129.31,7.75995906]
[1750629411408,26.3412376,129.34,129.33,7.75995906]
[1750629411614,0.71,129.37,129.33,8.49995906]
[1750629411922,0.71,129.37,129.34,7.75995906]
[1750629415829,0.71,129.37,129.34,8.49995906]
[1750629416225,0.71,129.37,129.35,7.75995906]
[1750629416531,0.71,129.37,129.34,8.49995906]
[1750629419226,18.64964886,129.37,129.34,7.75995906]
[1750629420024,19.35964886,129.37,129.34,0.74]
[1750629420227,19.35964886,129.37,129.34,8.49995906]
[1750629434551,18.64964886,129.37,129.34,8.49995906]
[1750629434847,0.73,129.36,129.34,8.49995906]
[1750629435544,18.64964886,129.39,129.34,8.49995906]
[1750629435844,18.64964886,129.37,129.35,7.75995906]
[1750629436252,19.37964886,129.37,129.35,7.75995906]
[1750629438758,0.73,129.38,129.36,7.75995906]
[1750629439255,0.73,129.38,129.36,8.48995906]
[1750629439552,0.73,129.39,129.36,8.48995906]
[1750629439935,0.73,129.39,129.36,0.73]
[1750629440246,0.73,129.39,129.36,8.48995906]
[1750629440736,18.64964886,129.38,129.36,0.73]
[1750629442850,18.64964886,129.38,129.35,7.75995906]
[1750629443156,18.64964886,129.38,129.36,7.75995906]
[1750629443449,5.73685171,129.42,129.34,7.73148418]
[1750629443652,18.64964886,129.41,129.37,7.75995906]
[1750629443862,19.37964886,129.41,129.38,0.73]
[1750629444233,0.73,129.4,129.37,8.48995906]
[1750629445665,0.73,129.4,129.37,0.73]
[1750629446251,0.73,129.4,129.37,8.48995906]
[1750629449645,0.73,129.4,129.37,0.73]
[1750629450367,18.64964886,129.38,129.35,7.75995906]
[1750629450565,19.37964886,129.38,129.35,8.48995906]
[1750629450861,19.37964886,129.38,129.36,26.0]
[1750629457174,18.64964886,129.38,129.36,26.0]
[1750629457354,0.73,129.37,129.36,26.0]
[1750629457563,0.73,129.36,129.32,14.73995906]
[1750629457750,0.73,129.33,129.29,7.71]
[1750629457953,0.73,129.33,129.29,15.46995906]
[1750629458154,0.73,129.33,129.29,41.46995906]
[1750629458455,26.40960792,129.34,129.29,41.46995906]
[1750629458671,0.73,129.33,129.29,41.46995906]
[1750629459178,0.73,129.33,129.29,15.46995906]
[1750629459370,26.40960792,129.34,129.29,15.46995906]
[1750629459571,26.40960792,129.34,129.3,26.0]
[1750629460258,0.73,129.33,129.3,26.0]
[1750629460476,0.73,129.32,129.3,26.0]
[1750629460976,19.37964886,129.32,129.3,26.0]
[1750629461178,18.64964886,129.32,129.3,26.0]
[1750629461359,18.64964886,129.32,129.29,32.98]
[1750629461559,0.73,129.31,129.29,32.98]
[1750629465474,0.73,129.31,129.29,6.98]
[1750629472282,0.73,129.31,129.29,14.73995906]
[1750629473995,18.64964886,129.32,129.29,14.73995906]
[1750629474186,0.7,129.31,129.29,14.73995906]
[1750629474498,0.7,129.31,129.29,6.98]
[1750629477079,18.64964886,129.3,129.29,6.98]
[1750629477282,19.34964886,129.3,129.29,6.98]
[1750629478105,18.64964886,129.28,129.23,7.75995906]
[1750629478394,18.64964886,129.26,129.23,8.50995906]
[1750629478574,18.64964886,129.26,129.25,26.0]
[1750629479489,18.64964886,129.26,129.24,0.75]
[1750629479690,18.64964886,129.26,129.25,26.0]
[1750629480389,19.34964886,129.26,129.25,26.0]
[1750629481304,7.75995906,129.28,129.23,26.0]
[1750629481601,18.64964886,129.29,129.21,7.75995906]
[1750629481602,7.75995906,129.26,129.21,7.75995906]
[1750629481808,18.64964886,129.24,129.21,33.75995906]
[1750629481974,19.34964886,129.24,129.21,33.75995906]
[1750629482307,19.34964886,129.24,129.21,38.1407417]
[1750629484594,18.64964886,129.24,129.21,38.1407417]
[1750629484797,0.7,129.23,129.21,38.1407417]
[1750629484988,0.7,129.23,129.21,26.0]
[1750629486985,0.7,129.23,129.2,19.1007417]
[1750629487185,0.7,129.23,129.2,6.96]
[1750629487693,19.34964886,129.22,129.2,6.96]
[1750629488793,0.7,129.21,129.19,26.0]
[1750629488982,0.7,129.21,129.17,38.8907417]
[1750629489186,0.7,129.21,129.17,38.1407417]
[1750629489387,0.7,129.21,129.18,0.75]
[1750629490677,0.7,129.21,129.17,38.1407417]
[1750629491374,0.7,129.21,129.17,38.8907417]
[1750629491577,19.34964886,129.2,129.17,38.8907417]
[1750629491796,19.34964886,129.2,129.17,26.75]
[1750629492793,30.79039056,129.2,129.15,19.1007417]
[1750629493002,0.7,129.19,129.15,45.8507417]
[1750629493180,0.7,129.19,129.15,45.1007417]
[1750629493385,0.7,129.19,129.16,0.75]
[1750629496596,19.34964886,129.19,129.18,26.0]
[1750629502418,27.12691893,129.19,129.15,41.41727007]
[1750629502597,26.42691893,129.19,129.15,40.73727007]
[1750629502900,27.14691893,129.19,129.16,0.68]
[1750629504413,19.36964886,129.18,129.15,33.64]
[1750629504603,27.14691893,129.18,129.17,26.0]
[1750629505512,26.42691893,129.18,129.15,32.96]
[1750629505816,19.36964886,129.16,129.15,26.0]
[1750629506113,27.14691893,129.16,129.15,26.0]
[1750629506304,0.72,129.15,129.11,8.45727007]
[1750629506499,19.36964886,129.15,129.14,26.0]
[1750629506905,18.64964886,129.15,129.14,26.0]
[1750629507104,26.42691893,129.15,129.14,26.0]
[1750629507619,27.14691893,129.15,129.14,26.0]
[1750629507810,27.14691893,129.15,129.11,8.45727007]
[1750629508012,27.14691893,129.15,129.14,26.0]
[1750629508207,19.36964886,129.15,129.14,26.0]
[1750629508405,31.52993562,129.15,129.14,26.0]
[1750629512700,18.64964886,129.14,129.13,26.0]
[1750629513018,19.36964886,129.14,129.13,26.0]
[1750629515923,31.52993562,129.14,129.13,26.0]
[1750629518317,30.80993562,129.14,129.1,7.64]
[1750629518511,12.88028676,129.13,129.12,26.0]
[1750629518699,31.52993562,129.13,129.1,6.96]
[1750629518901,12.16028676,129.11,129.07,12.84028676]
[1750629519102,30.80993562,129.1,129.08,26.0]
[1750629519303,31.52993562,129.1,129.07,0.68]
[1750629519515,31.52993562,129.1,129.09,26.0]
[1750629520425,30.80993562,129.1,129.08,26.0]
[1750629520720,30.80993562,129.1,129.05,6.96]
[1750629520721,18.64964886,129.08,129.05,7.64]
[1750629520910,30.80993562,129.08,129.07,26.0]
[1750629521307,31.52993562,129.08,129.07,26.0]
[1750629523105,19.36964886,129.08,129.07,26.0]
[1750629523830,31.52993562,129.08,129.07,26.0]
[1750629525931,19.36964886,129.08,129.07,26.0]
[1750629526228,31.52993562,129.08,129.05,6.96]
[1750629526431,12.87028676,129.07,129.05,32.96]
[1750629526618,12.87028676,129.07,129.04,0.68]
[1750629527018,18.64964886,129.06,129.05,26.0]
[1750629527332,30.80993562,129.06,129.04,26.0]
[1750629527534,18.64964886,129.04,129.02,0.68]
[1750629528033,18.64964886,129.04,129.03,26.0]
[1750629528509,19.35964886,129.04,129.0,19.80028676]
[1750629528828,19.35964886,129.04,129.03,26.0]
[1750629530911,18.64964886,129.04,129.03,26.0]
[1750629531110,19.35964886,129.04,129.03,26.0]
[1750629531423,19.35964886,129.04,129.0,7.64]
[1750629531424,30.80993562,129.04,129.01,26.0]
[1750629531731,18.64964886,129.02,129.01,26.0]
[1750629533234,30.80993562,129.02,129.01,26.0]
[1750629533734,31.51993562,129.02,129.01,26.0]
[1750629533921,31.51993562,129.02,128.99,26.0]
[1750629534242,31.51993562,129.02,129.0,26.0]
[1750629535140,30.80993562,129.01,129.0,26.0]
[1750629535643,31.51993562,129.01,129.0,26.0]
[1750629535842,18.64964886,129.0,128.99,26.0]
[1750629536020,30.80993562,129.0,128.99,26.0]
[1750629536332,31.51993562,129.0,128.99,26.0]
[1750629537613,30.80993562,129.0,128.97,26.0]
[1750629537829,18.64964886,128.98,128.97,26.0]
[1750629538232,18.64964886,129.03,128.95,26.68]
[1750629538432,12.16028676,128.98,128.95,26.68]
[1750629538643,30.80993562,128.98,128.96,26.0]
[1750629539122,30.80993562,128.98,128.95,0.68]
[1750629539314,30.80993562,128.98,128.97,26.0]
[1750629540325,18.64964886,128.97,128.96,26.0]
[1750629541142,12.87028676,128.98,128.96,26.0]
[1750629541324,18.64964886,128.97,128.96,26.0]
[1750629543539,30.80993562,128.97,128.96,26.0]
[1750629544927,30.80993562,128.97,128.95,26.0]
[1750629545535,31.51993562,128.97,128.95,26.0]
[1750629546428,31.30993562,128.96,128.95,26.0]
[1750629551547,18.64964886,128.95,128.92,7.62]
[1750629551746,30.80993562,128.95,128.94,26.0]
[1750629552748,30.80993562,128.95,128.89,2.1828]
[1750629552749,19.35964886,128.95,128.89,2.1828]
[1750629552948,0.71,128.93,128.9,0.68]
[1750629553166,12.16028676,128.91,128.88,6.94]
[1750629553368,12.16028676,128.89,128.85,14.39148676]
[1750629553660,12.16028676,128.87,128.85,26.0]
[1750629553979,30.80993562,128.86,128.82,12.16028676]
[1750629554181,12.87028676,128.87,128.85,26.0]
[1750629554470,12.16028676,128.86,128.85,26.0]
[1750629554631,30.80993562,128.86,128.83,0.74]
[1750629554836,31.48993562,128.86,128.84,26.0]
[1750629555035,12.16028676,128.85,128.84,26.0]
[1750629555664,18.64964886,128.84,128.8,6.94]
[1750629555932,12.16028676,128.82,128.8,0.74]
[1750629556134,12.16028676,128.81,128.78,0.74]
[1750629556445,12.16028676,128.81,128.8,26.0]
[1750629556649,13.89664651,128.93,128.8,26.0]
[1750629556650,1.5338,128.89,128.84,0.74]
[1750629556977,9.492632,128.98,128.83,26.0]
[1750629556978,8.9321,128.95,128.85,26.0]
[1750629557137,12.16028676,128.96,128.91,38.16028676]
[1750629557336,12.16028676,128.96,128.92,0.74]
[1750629557553,12.16028676,128.94,128.91,26.0]
[1750629557755,12.16028676,128.94,128.91,26.74]
[1750629557947,18.64964886,128.96,128.91,26.74]
[1750629558148,12.16028676,128.95,128.91,26.74]
[1750629558432,19.32964886,128.97,128.91,26.74]
[1750629558636,19.32964886,128.97,128.9,12.16028676]
[1750629558637,12.16028676,128.99,128.97,26.0]
[1750629558839,12.16028676,129.0,128.96,38.16028676]
[1750629559051,12.16028676,129.0,128.96,12.90028676]
[1750629559455,12.16028676,128.99,128.98,26.0]
[1750629559994,12.16028676,128.99,128.96,26.0]
[1750629560163,30.80993562,128.99,128.95,26.0]
[1750629560366,30.80993562,128.99,128.95,26.74]
[1750629561967,12.16028676,129.01,128.99,26.0]
[1750629562138,12.16028676,129.02,129.01,26.0]
[1750629562337,12.16028676,129.03,128.99,12.16028676]
[1750629562549,12.16028676,129.03,129.0,0.74]
[1750629562757,18.64964886,129.04,129.02,26.0]
[1750629562758,12.16028676,129.04,129.02,26.0]
[1750629562955,12.16028676,129.03,129.02,26.0]
[1750629563153,12.16028676,129.04,129.02,26.0]
[1750629563357,12.16028676,129.03,129.02,26.0]
[1750629564265,21.65798022,129.03,129.02,26.0]
[1750629567163,6.92,129.07,129.04,26.0]
[1750629567164,18.64964886,129.07,129.04,26.0]
[1750629567344,21.65798022,129.07,129.03,47.65798022]
[1750629567549,0.68,129.08,129.04,0.74]
[1750629567550,21.65798022,129.08,129.04,0.74]
[1750629567957,21.65798022,129.08,129.03,47.24628022]
[1750629569168,21.65798022,129.08,129.04,21.65798022]
[1750629569748,21.65798022,129.08,129.03,47.24628022]
[1750629569947,21.65798022,129.07,129.03,47.24628022]
[1750629576272,22.33798022,129.07,129.03,47.61628022]
[1750629576666,22.33798022,129.07,129.05,26.0]
[1750629577483,40.98762908,129.06,129.05,26.0]
[1750629583051,0.68,129.06,129.05,26.0]
[1750629583257,22.33798022,129.08,129.06,26.0]
[1750629583756,0.68,129.07,129.06,26.0]
[1750629584373,12.85546563,129.07,129.06,26.0]
[1750629585976,18.64964886,129.09,129.07,26.0]
[1750629586163,31.52511449,129.09,129.05,12.17546563]
[1750629588079,12.17546563,129.12,129.1,26.0]
[1750629588278,12.17546563,129.12,129.09,26.0]
[1750629588678,12.87546563,129.12,129.09,26.0]
[1750629589187,30.82511449,129.13,129.09,26.0]
[1750629589483,31.52511449,129.13,129.09,26.0]
[1750629589683,31.52511449,129.13,129.09,38.17546563]
[1750629590279,19.34964886,129.13,129.09,38.17546563]
[1750629591064,31.52511449,129.13,129.09,38.17546563]
[1750629591265,8.0339,129.14,129.09,38.17546563]
[1750629591266,12.87546563,129.14,129.09,38.17546563]
[1750629591467,12.87546563,129.14,129.11,26.0]
[1750629591768,12.17546563,129.16,129.12,12.17546563]
[1750629591975,18.64964886,129.17,129.13,12.17546563]
[1750629591976,30.82511449,129.17,129.13,12.17546563]
[1750629592281,12.17546563,129.17,129.13,12.17546563]
[1750629592479,30.82511449,129.17,129.13,12.17546563]
[1750629592674,31.52511449,129.17,129.13,12.17546563]
[1750629592875,31.52511449,129.17,129.13,12.54546563]
[1750629592876,12.17546563,129.17,129.13,12.54546563]
[1750629593075,19.34964886,129.19,129.14,38.54546563]
[1750629593280,31.52511449,129.19,129.15,12.17546563]
[1750629593589,12.17546563,129.2,129.16,12.17546563]
[1750629593890,12.87546563,129.2,129.16,12.17546563]
[1750629595193,12.87546563,129.2,129.14,26.0]
[1750629595194,12.87546563,129.2,129.15,12.54546563]
[1750629596367,30.82511449,129.2,129.17,26.0]
[1750629597289,18.64964886,129.2,129.17,26.0]
[1750629597508,30.82511449,129.2,129.17,26.0]
[1750629597787,18.64964886,129.2,129.17,26.0]
[1750629598378,0.7,129.22,129.18,38.17546563]
[1750629598688,18.64964886,129.22,129.19,12.17546563]
[1750629598890,18.54846563,129.24,129.19,12.17546563]
[1750629599199,18.54846563,129.24,129.18,26.0]
[1750629599200,12.87546563,129.24,129.2,12.17546563]
[1750629599397,18.64964886,129.25,129.2,12.17546563]
[1750629599596,30.82511449,129.25,129.18,33.74109969]
[1750629599899,31.52511449,129.25,129.21,26.0]
[1750629600082,12.17546563,129.24,129.2,26.0]
[1750629600274,18.64964886,129.25,129.2,38.17546563]
[1750629600475,12.87546563,129.23,129.15,1.6557]
[1750629600676,12.87546563,129.2,129.13,6.0394]
[1750629600888,18.64964886,129.19,129.11,6.9]
[1750629601116,0.7,129.17,129.08,7.7054]
[1750629601412,0.7,129.19,129.11,12.17546563]
[1750629601706,1.5177,129.19,129.13,26.0]
[1750629601879,18.64964886,129.2,129.15,26.37]
[1750629602076,18.64964886,129.2,129.15,26.0]
[1750629602400,21.60742488,129.19,129.15,26.0]
[1750629602570,22.30742488,129.18,129.15,26.0]
[1750629603172,18.64964886,129.16,129.1,1.6595]
[1750629603473,18.64964886,129.16,129.07,17.70206211]
[1750629603474,21.60742488,129.13,129.08,6.9]
[1750629603688,0.7,129.11,129.06,21.60742488]
[1750629604003,25.01884886,129.13,129.06,21.60742488]
[1750629604004,22.30742488,129.12,129.08,26.0]
[1750629604292,40.95707374,129.11,129.04,13.1178]
[1750629604505,22.30742488,129.1,129.03,3.97328597]
[1750629604667,0.7,129.12,129.08,21.60742488]
[1750629604871,0.7,129.12,129.11,26.0]
[1750629605095,0.7,129.12,129.04,0.37]
[1750629605305,18.64964886,129.11,129.03,3.85540962]
[1750629605501,40.95707374,129.11,129.07,21.60742488]
[1750629605707,19.34964886,129.11,129.07,21.60742488]
[1750629605885,0.7,129.1,129.06,26.0]
[1750629606088,40.25707374,129.1,129.06,47.60742488]
[1750629606291,0.7,129.09,129.06,47.60742488]
[1750629606793,21.60742488,129.1,129.05,26.0]
[1750629606999,21.60742488,129.09,129.05,26.0]
[1750629607307,0.7,129.08,129.04,21.60742488]
[1750629607600,0.7,129.11,129.08,26.0]
[1750629607907,22.30742488,129.11,129.05,26.0]
[1750629608107,18.64964886,129.12,129.06,21.60742488]
[1750629608393,21.60742488,129.08,129.04,21.60742488]
[1750629608599,21.60742488,129.06,129.02,21.60742488]
[1750629608782,0.7,129.07,129.03,21.60742488]
[1750629609098,0.7,129.11,129.09,26.0]
[1750629609394,5.64315097,129.14,129.09,26.0]
[1750629609395,0.7,129.14,129.13,26.0]
[1750629610095,18.64964886,129.15,129.14,26.0]
[1750629610505,22.30742488,129.15,129.14,26.0]
[1750629610692,18.64964886,129.14,129.1,26.0]
[1750629611007,19.34964886,129.13,129.12,26.0]
[1750629611205,22.30742488,129.15,129.14,26.0]
[1750629611589,0.7,129.15,129.11,21.60742488]
[1750629611779,18.64964886,129.15,129.14,26.0]